bitfinex/quotes_ETHUSD_20250630
["timestamp","ask_amount","ask_price","bid_price","bid_amount"]
[1751314818660,0.01,2523.3,2523.2,6.32767277]
[1751314818827,0.01,2523.3,2523.2,2.36445147]
[1751314819963,0.01,2523.3,2523.2,0.1976]
[1751314820135,0.01,2523.3,2523.2,4.1608213]
[1751314821179,2.46052967,2524.2,2524.1,3.96180816]
[1751314821469,2.46052967,2524.2,2524.1,22.48176502]
[1751314821672,2.46052967,2524.2,2524.1,14.3505811]
[1751314821869,0.2143652,2524.7,2524.1,14.3505811]
[1751314821870,0.2143652,2524.7,2524.2,3.96165121]
[1751314822068,0.2143652,2524.7,2524.6,3.96102352]
[1751314822277,0.2143652,2524.7,2524.1,7.74066462]
[1751314822278,1.0165652,2524.7,2523.5,0.7852]
[1751314822567,1.0165652,2524.7,2524.1,0.7852]
[1751314822739,1.0165652,2524.7,2524.1,4.74691024]
[1751314822740,3.96103344,2524.6,2524.1,4.74691024]
[1751314822934,0.2143652,2524.7,2524.3,3.96144731]
[1751314823138,0.2143652,2524.7,2524.2,3.96157844]
[1751314823340,4.17523368,2524.7,2524.3,3.96148854]
[1751314823563,0.01,2524.4,2524.3,10.72948854]
[1751314823773,0.01,2524.4,2524.3,12.2771192]
[1751314824351,0.01,2524.4,2524.3,10.72948854]
[1751314825742,0.01,2524.4,2524.3,6.768]
[1751314826665,0.01,2524.4,2524.1,0.7852]
[1751314826888,0.01,2524.4,2524.3,6.762]
[1751314828088,0.01,2524.4,2524.3,10.72349427]
[1751314828239,0.01,2524.4,2524.3,12.27051514]
[1751314829120,0.01,2524.4,2524.3,22.27051514]
[1751314829755,0.01,2524.4,2524.3,23.06551514]
[1751314830243,0.01,2524.4,2524.3,21.51049427]
[1751314831288,0.01,2524.4,2524.3,6.767]
[1751314831490,0.01,2524.4,2524.3,10.72849427]
[1751314831857,0.01,2524.4,2524.3,20.72849427]
[1751314832362,0.01,2524.4,2524.3,20.92609427]
[1751314832670,0.01,2524.4,2524.3,10.92609427]
[1751314833096,0.01,2524.4,2524.3,20.92609427]
[1751314833261,0.01,2524.4,2524.3,21.73379427]
[1751314836692,0.01,2524.4,2524.3,17.7723]
[1751314836899,0.01,2524.4,2524.3,21.73379427]
[1751314837094,0.01,2524.4,2524.3,17.75172763]
[1751314837295,0.01,2524.4,2524.3,14.15909427]
[1751314837595,0.01,2524.4,2524.3,20.92409427]
[1751314837892,0.01,2524.4,2524.3,6.9626]
[1751314838099,0.01,2524.4,2524.3,6.9646]
[1751314839088,0.01,2524.4,2524.3,0.1976]
[1751314839385,0.01,2524.4,2524.3,6.9606]
[1751314842400,0.01,2524.4,2524.3,6.9506]
[1751314844179,4.79573734,2524.4,2524.0,1.15819993]
[1751314844497,4.79573734,2524.4,2523.9,1.15819993]
[1751314844498,3.96196513,2524.0,2523.9,1.15819993]
[1751314844798,3.96203062,2524.0,2523.7,1.35579993]
[1751314845372,3.96214328,2523.9,2523.7,1.35579993]
[1751314846078,0.8244,2524.1,2523.8,1.15819993]
[1751314846394,3.96171701,2524.2,2523.8,0.1976]
[1751314846590,3.96171701,2524.2,2524.0,0.1976]
[1751314846792,3.96180816,2524.1,2523.7,8.67949993]
[1751314846995,4.59421867,2524.2,2523.7,6.754]
[1751314847175,3.96173189,2524.2,2523.7,11.88159642]
[1751314847376,3.96183311,2524.1,2523.7,7.91919993]
[1751314847577,3.96197014,2524.0,2523.7,7.91919993]
[1751314847876,3.96204745,2524.0,2523.7,6.761]
[1751314852391,3.96214087,2523.9,2523.7,6.761]
[1751314852589,3.96223471,2523.9,2523.7,6.761]
[1751314854508,3.96223471,2523.9,2523.3,7.90119993]
[1751314854509,3.96259312,2523.6,2523.3,7.90119993]
[1751314854692,3.96259312,2523.6,2523.1,1.15819993]
[1751314855005,3.96277302,2523.5,2523.1,7.90119993]
[1751314855504,3.96262495,2523.6,2523.1,11.86453385]
[1751314855999,5.53271026,2523.9,2523.2,3.96319859]
[1751314856205,3.96237278,2523.8,2523.1,11.86450424]
[1751314856405,3.96265456,2523.6,2523.1,11.86450424]
[1751314856610,3.96265456,2523.6,2523.1,12.74444057]
[1751314856793,3.96265456,2523.6,2523.3,0.1976]
[1751314857107,3.96282432,2523.5,2523.3,0.1976]
[1751314857471,0.7781,2523.4,2523.3,0.1976]
[1751314857673,3.96307167,2523.3,2522.9,7.89519993]
[1751314857896,3.96307167,2523.3,2523.1,0.1976]
[1751314858603,3.96308633,2523.3,2523.1,0.1976]
[1751314859998,4.74103263,2523.4,2523.1,0.1976]
[1751314860421,4.74103015,2523.4,2523.1,0.1976]
[1751314860797,0.7781,2523.4,2523.1,0.1976]
[1751314861743,0.1976,2523.6,2523.1,0.1976]
[1751314861945,0.9846,2524.0,2523.5,0.1976]
[1751314862604,4.94658525,2524.0,2523.5,0.1976]
[1751314862821,3.96217478,2523.9,2523.5,0.1976]
[1751314863034,4.77945853,2523.5,2522.9,1.15819993]
[1751314863234,0.8166,2523.5,2523.1,0.1976]
[1751314863411,4.77940881,2523.5,2523.1,0.1976]
[1751314863729,3.96298372,2523.4,2523.1,0.1976]
[1751314864357,4.77944254,2523.5,2523.1,0.1976]
[1751314864642,3.96291054,2523.4,2523.1,0.1976]
[1751314865416,0.8166,2523.5,2523.1,0.1976]
[1751314865626,0.1976,2523.6,2523.1,0.1976]
[1751314865826,4.16020864,2523.6,2523.1,0.1976]
[1751314866523,3.96276484,2523.5,2523.1,0.1976]
[1751314867332,3.96291806,2523.4,2523.1,0.1976]
[1751314867716,3.96281464,2523.5,2523.1,0.1976]
[1751314868333,0.1976,2523.6,2523.1,0.1976]
[1751314868531,3.96281294,2523.5,2523.1,0.1976]
[1751314871006,4.16029004,2523.6,2523.1,0.1976]
[1751314871516,0.1976,2523.6,2523.1,4.16096305]
[1751314871926,0.1976,2523.6,2523.1,0.1976]
[1751314872833,1.09281349,2523.6,2523.1,0.1976]
[1751314873033,1.09281349,2523.6,2522.6,1.17819993]
[1751314873034,3.96338735,2523.1,2522.6,1.17819993]
[1751314873212,3.96322383,2523.2,2522.6,1.17819993]
[1751314873412,0.7997,2523.6,2522.7,1.15819993]
[1751314873614,4.76237946,2523.6,2522.9,3.96358367]
[1751314873813,3.96276835,2523.5,2522.9,3.96358367]
[1751314874014,4.76235896,2523.6,2523.0,4.95319347]
[1751314875115,6.712,2523.8,2523.2,3.96312198]
[1751314875116,4.72785784,2523.8,2523.2,3.96312198]
[1751314875308,0.7655,2523.8,2523.1,1.15819993]
[1751314875511,3.9627328,2523.6,2523.0,5.12166008]
[1751314875849,3.9627328,2523.6,2523.1,3.96337585]
[1751314876544,3.96250746,2523.7,2523.1,5.12157578]
[1751314876843,3.96282567,2523.5,2523.1,1.15819993]
[1751314877244,3.96282567,2523.5,2522.9,3.9636408]
[1751314877415,3.96265173,2523.6,2523.0,0.98972429]
[1751314877617,2.72575,2523.8,2522.8,11.96979993]
[1751314878044,3.96287063,2523.5,2522.8,5.93362105]
[1751314878241,3.96291797,2523.4,2522.9,1.15819993]
[1751314878752,2.72575,2523.8,2522.9,1.15819993]
[1751314878958,0.7655,2523.2,2522.8,1.15819993]
[1751314879115,4.72875225,2523.2,2522.8,1.15819993]
[1751314879748,4.72875225,2523.2,2522.7,1.15819993]
[1751314879749,3.96378044,2522.9,2522.7,1.15819993]
[1751314879950,3.96385054,2522.8,2522.6,1.17819993]
[1751314880150,3.96377361,2522.9,2522.6,1.17819993]
[1751314880738,3.96385661,2522.8,2522.6,0.02]
[1751314881558,3.96363143,2523.0,2522.6,0.02]
[1751314883028,4.16123143,2523.0,2522.6,0.02]
[1751314884460,3.96371663,2522.9,2522.6,0.02]
[1751314885239,0.1976,2523.0,2522.6,0.02]
[1751314885240,4.16118011,2523.0,2522.6,0.02]
[1751314885958,10.84573831,2523.3,2522.9,0.1976]
[1751314886529,4.16073831,2523.3,2522.9,0.1976]
[1751314886728,3.96325465,2523.2,2522.9,0.1976]
[1751314886929,4.1607477,2523.3,2522.9,0.1976]
[1751314887726,3.96351483,2523.1,2522.9,0.1976]
[1751314888656,3.96329146,2523.2,2522.9,0.1976]
[1751314888859,3.96331212,2523.2,2522.9,0.1976]
[1751314889060,4.16123843,2523.0,2522.7,1.15819993]
[1751314889272,3.96379086,2522.9,2522.6,1.17819993]
[1751314889447,3.96379086,2522.9,2522.6,0.02]
[1751314889448,3.96400681,2522.7,2522.6,0.02]
[1751314889652,11.67000681,2522.7,2522.6,0.02]
[1751314889858,21.39460681,2522.7,2522.6,0.02]
[1751314890180,3.96494984,2522.1,2522.0,1.15819993]
[1751314890541,0.1976,2522.1,2521.9,1.5715265]
[1751314890741,0.1976,2522.1,2521.8,0.1976]
[1751314890742,0.1976,2522.1,2522.0,1.5715265]
[1751314890969,0.1976,2522.1,2521.9,1.5715265]
[1751314891883,0.1976,2522.1,2522.0,1.17701648]
[1751314892086,0.1976,2522.1,2521.9,1.17701648]
[1751314892288,4.16268445,2522.1,2521.8,0.1976]
[1751314892444,0.1976,2522.0,2521.6,5.14273614]
[1751314893094,7.4883,2522.6,2521.7,0.8224]
[1751314893382,3.96457639,2522.4,2521.9,0.1976]
[1751314893585,6.689,2522.4,2521.9,0.1976]
[1751314893990,6.689,2522.4,2521.9,4.16285808]
[1751314894696,0.1976,2522.5,2521.9,0.1976]
[1751314894697,4.16192701,2522.5,2521.9,0.1976]
[1751314894991,6.688,2522.4,2521.9,0.1976]
[1751314895767,6.688,2522.4,2521.9,4.16286109]
[1751314896090,6.688,2522.4,2522.0,3.96510126]
[1751314896692,6.688,2522.4,2521.9,4.16277244]
[1751314897051,6.688,2522.4,2522.0,3.9650767]
[1751314897251,6.688,2522.4,2521.9,4.16278388]
[1751314899456,6.688,2522.4,2522.0,3.96510294]
[1751314899656,6.688,2522.4,2521.9,4.1627702]
[1751314900295,0.1976,2522.5,2521.9,0.1976]
[1751314900453,7.7042,2522.9,2522.3,4.16213134]
[1751314900652,1.0202,2522.9,2522.3,4.16213134]
[1751314900854,0.01,2522.6,2522.4,3.96441185]
[1751314901497,0.01,2522.6,2522.3,4.16215936]
[1751314902364,0.01,2522.6,2522.4,3.96441225]
[1751314903888,0.01,2522.6,2522.4,3.96440306]
[1751314904191,0.01,2522.6,2522.3,4.16215177]
[1751314904400,0.01,2522.6,2522.3,5.32472523]
[1751314905317,0.01,2522.6,2522.3,6.50174171]
[1751314906606,0.01,2522.6,2522.3,2.53718994]
[1751314906808,0.01,2522.6,2522.3,0.1976]
[1751314908104,0.7805,2522.4,2522.2,1.17701648]
[1751314908298,0.7805,2522.4,2522.1,1.17701648]
[1751314909919,0.7805,2522.4,2522.0,1.37461648]
[1751314910522,4.74499387,2522.4,2522.0,1.37461648]
[1751314910723,3.96474062,2522.3,2522.0,1.37461648]
[1751314911022,1.86978123,2522.4,2521.9,1.37461648]
[1751314911332,3.96503355,2522.1,2521.8,1.17701648]
[1751314912201,0.1976,2522.2,2521.7,1.17701648]
[1751314912202,4.74570591,2522.0,2521.7,1.17701648]
[1751314912530,0.1976,2521.9,2521.7,1.17701648]
[1751314913332,4.16287961,2521.9,2521.7,1.17701648]
[1751314913514,3.96542152,2521.8,2521.5,1.19701648]
[1751314913823,4.72083604,2521.6,2521.5,0.02]
[1751314914031,5.27083604,2521.6,2521.5,0.02]
[1751314915036,4.72083604,2521.6,2521.5,0.02]
[1751314915911,5.27083604,2521.6,2521.5,0.02]
[1751314916827,0.7551,2521.6,2521.5,0.02]
[1751314917021,4.91843604,2521.6,2521.5,0.02]
[1751314917608,6.77501942,2521.6,2521.5,0.02]
[1751314918395,16.77501942,2521.6,2521.5,0.02]
[1751314919099,17.32501942,2521.6,2521.5,0.02]
[1751314921503,17.32501942,2521.6,2520.8,0.02]
[1751314921504,5.34523724,2520.9,2520.8,0.02]
[1751314921702,24.67076096,2520.9,2520.8,0.02]
[1751314922009,15.87976096,2520.9,2520.8,0.02]
[1751314922214,24.77258988,2520.9,2520.8,0.02]
[1751314922602,15.98158988,2520.9,2520.8,0.02]
[1751314922803,24.77258988,2520.9,2520.8,0.02]
[1751314923931,1.46475264,2520.9,2520.8,0.02]
[1751314924136,13.68806616,2520.9,2520.8,0.02]
[1751314924325,9.72122892,2520.9,2520.8,0.02]
[1751314924648,0.10182892,2520.9,2520.8,0.02]
[1751314924849,0.10182892,2520.9,2520.8,0.8135]
[1751314925152,0.10182892,2520.9,2520.8,0.02]
[1751314928443,0.10182892,2520.9,2520.8,3.9869946]
[1751314928649,0.10182892,2520.9,2520.8,0.02]
[1751314930040,0.10182892,2520.9,2520.8,5.57593]
[1751314931606,0.10182892,2520.9,2520.8,5.77353]
[1751314932209,3.96573782,2521.6,2520.9,3.96677011]
[1751314932409,3.96573782,2521.6,2521.2,0.1976]
[1751314933804,4.16323241,2521.7,2521.2,0.1976]
[1751314934038,5.65772991,2521.6,2521.2,0.1976]
[1751314934447,1.69197119,2521.6,2521.2,0.1976]
[1751314935275,0.1976,2521.7,2521.2,0.1976]
[1751314935588,9.528,2522.0,2521.4,3.9659345]
[1751314935742,9.7256,2522.0,2521.5,0.1976]
[1751314936567,9.7356,2522.0,2521.5,0.1976]
[1751314937249,9.7356,2522.0,2521.5,4.16347953]
[1751314937444,0.01,2522.0,2521.7,3.96549904]
[1751314937649,0.01,2522.0,2521.6,0.8083]
[1751314937650,0.01,2522.0,2521.8,0.1976]
[1751314938065,0.01,2522.0,2521.8,0.09577108]
[1751314938367,0.01,2522.0,2521.6,0.8083]
[1751314939964,0.01,2522.0,2521.6,4.77394837]
[1751314940165,0.01,2522.0,2521.7,3.96546404]
[1751314940345,0.01,2522.0,2521.6,1.79992755]
[1751314940346,0.01,2522.0,2521.6,5.76560486]
[1751314940976,0.01,2522.0,2521.6,1.79992755]
[1751314943072,0.01,2522.0,2521.6,5.7656565]
[1751314943878,0.01,2522.0,2521.7,3.96556454]
[1751314944586,0.01,2522.0,2521.6,5.76557169]
[1751314945282,0.01,2522.0,2521.6,1.79992755]
[1751314945882,0.01,2522.0,2521.6,0.8083]
[1751314946071,0.01,2522.0,2521.6,4.77403177]
[1751314946812,0.01,2522.0,2521.6,0.8083]
[1751314947158,0.01,2522.0,2521.6,4.77402937]
[1751314948463,0.01,2522.0,2521.8,0.1976]
[1751314951872,0.01,2522.0,2521.9,3.96526428]
[1751314952983,0.01,2522.0,2521.9,4.16286428]
[1751314953287,0.01,2522.0,2521.9,5.09333348]
[1751314956314,0.01,2522.0,2521.9,4.16286428]
[1751314956520,0.01,2522.0,2521.9,0.1976]
[1751314958002,0.01,2522.0,2521.9,4.16286428]
[1751314959413,0.01,2522.0,2521.9,12.3928248]
[1751314961406,0.01,2522.0,2521.9,12.78790734]
[1751314961712,0.01,2522.0,2521.9,26.18089797]
[1751314962492,0.01,2522.0,2521.9,24.60937147]
[1751314962895,0.01,2522.0,2521.9,26.96096352]
[1751314963497,0.01,2522.0,2521.9,33.63896352]
[1751314963705,0.01,2522.0,2521.9,31.28737147]
[1751314963909,0.01,2522.6,2522.5,3.96432111]
[1751314964217,0.01,2522.6,2522.5,29.35254886]
[1751314964416,0.01,2522.6,2522.5,29.55014886]
[1751314964783,0.01,2522.6,2522.5,28.37032978]
[1751314965187,0.01,2522.6,2522.5,29.55014886]
[1751314965384,0.01,2522.6,2522.5,28.37032978]
[1751314966114,0.01,2522.6,2522.5,29.94342188]
[1751314966701,0.01,2522.6,2522.5,28.37032978]
[1751314966901,0.01,2522.6,2522.5,29.14732978]
[1751314967117,0.01,2522.6,2522.5,30.72153563]
[1751314970321,0.01,2522.6,2522.5,29.14732978]
[1751314970543,0.01,2522.6,2522.5,31.50696794]
[1751314971091,0.01,2522.6,2522.5,29.14732978]
[1751314971292,0.01,2523.1,2523.0,13.96353547]
[1751314971530,0.7766,2523.7,2523.6,4.76679312]
[1751314971531,0.01,2523.7,2523.6,4.76679312]
[1751314971834,0.01,2523.7,2523.6,28.49430968]
[1751314971992,0.01,2523.7,2523.6,16.674]
[1751314972209,0.01,2523.7,2523.6,10.83419312]
[1751314972394,0.01,2523.7,2523.6,12.70338409]
[1751314973910,0.01,2523.7,2523.6,13.88182005]
[1751314974110,0.01,2523.7,2523.6,12.70338409]
[1751314974538,0.01,2523.7,2523.6,13.87803187]
[1751314975110,0.01,2523.7,2523.6,23.87803187]
[1751314976116,0.01,2523.7,2523.6,22.70338409]
[1751314976816,0.01,2523.7,2523.6,23.87803187]
[1751314978250,0.01,2523.7,2523.6,22.70338409]
[1751314985662,0.01,2523.7,2523.6,19.75190065]
[1751314985863,0.01,2523.7,2523.6,30.52260065]
[1751314986066,0.01,2523.7,2523.6,31.69724843]
[1751314986366,0.01,2523.7,2523.6,30.52260065]
[1751314986551,0.01,2523.7,2523.6,29.75190065]
[1751314988551,0.01,2523.7,2523.6,29.75090065]
[1751314990066,0.01,2523.7,2523.6,16.02938409]
[1751314990370,0.01,2523.7,2523.6,10.1976]
[1751314990569,0.01,2523.7,2523.6,14.16019312]
[1751314991265,0.01,2523.7,2523.6,10.1976]
[1751314993270,0.01,2523.7,2523.6,15.3348409]
[1751314993648,0.01,2523.7,2523.6,22.38835746]
[1751314994069,0.01,2523.7,2523.6,25.84729284]
[1751314994673,0.7703,2523.7,2523.6,1.37224778]
[1751314994834,0.7703,2523.7,2523.6,0.1976]
[1751314995039,0.7703,2523.7,2523.6,1.37224778]
[1751314995368,0.01,2523.7,2523.6,12.38835746]
[1751314995575,0.01,2523.7,2523.6,15.1805851]
[1751314995780,0.01,2523.7,2523.6,20.67193732]
[1751314995941,0.01,2523.7,2523.6,22.24318526]
[1751314996338,0.01,2523.7,2523.6,6.95242076]
[1751314996669,0.01,2523.7,2523.6,5.72881112]
[1751314997076,0.01,2524.3,2523.6,13.33157192]
[1751314997372,3.97161594,2524.3,2524.1,1.17633533]
[1751314997668,0.8209,2524.2,2524.0,1.37393533]
[1751314998666,0.8209,2524.2,2523.9,1.17633533]
[1751314998667,3.96180816,2524.1,2523.9,1.17633533]
[1751314998863,3.96196513,2524.0,2523.9,1.17633533]
[1751314999070,0.8209,2524.0,2523.8,1.17633533]
[1751314999246,4.98047375,2524.0,2523.7,1.17633533]
[1751314999446,4.98047375,2524.0,2523.6,1.17633533]
[1751314999651,1.0185,2524.0,2523.6,1.17633533]
[1751314999972,0.8209,2524.0,2523.6,2.26312952]
[1751315000167,0.8209,2524.0,2523.9,0.1976]
[1751315001163,0.8209,2524.0,2523.9,1.37393533]
[1751315002654,4.78286513,2524.0,2523.9,1.37393533]
[1751315002981,4.78286513,2524.0,2523.9,1.17633533]
[1751315003949,3.96212211,2523.9,2523.8,1.17633533]
[1751315004963,4.51259312,2523.6,2523.5,1.17633533]
[1751315005151,3.96275014,2523.5,2523.4,1.17633533]
[1751315005466,3.96275014,2523.5,2523.1,2.35267067]
[1751315005467,5.28810718,2523.4,2523.3,1.17633533]
[1751315005667,5.28810718,2523.4,2523.1,1.56844711]
[1751315005668,5.28826424,2523.3,2523.2,1.17633533]
[1751315005980,15.28857838,2523.1,2523.0,1.17633533]
[1751315006395,15.28857838,2523.1,2522.9,1.17633533]
[1751315006396,4.73873547,2523.0,2522.9,1.17633533]
[1751315006597,6.83573547,2523.0,2522.9,1.17633533]
[1751315007287,3.96384969,2522.8,2522.7,1.17633533]
[1751315007481,3.96384969,2522.8,2522.5,1.56844711]
[1751315007482,3.96400681,2522.7,2522.6,1.17633533]
[1751315007665,3.96400681,2522.7,2522.4,1.56844711]
[1751315007666,3.96400681,2522.7,2522.5,1.17633533]
[1751315008182,3.96369257,2522.9,2522.4,5.14067323]
[1751315008183,3.96380457,2522.9,2522.4,5.14067323]
[1751315008357,3.96385189,2522.8,2522.4,0.67091203]
[1751315008568,3.96385189,2522.8,2522.4,1.84724736]
[1751315009407,3.96385189,2522.8,2522.4,0.67091203]
[1751315009566,9.5382,2523.0,2522.3,1.17633533]
[1751315009768,13.50177472,2523.0,2522.3,1.17633533]
[1751315009973,0.8161,2522.4,2522.2,1.17633533]
[1751315010278,4.78058248,2522.4,2522.1,1.17633533]
[1751315010478,0.8161,2522.4,2522.1,1.17633533]
[1751315011301,4.78066181,2522.4,2522.0,11.67633533]
[1751315011511,0.8161,2522.4,2522.0,15.64142359]
[1751315011674,4.78061673,2522.4,2522.0,11.67633533]
[1751315012387,0.8161,2522.4,2522.0,5.64143639]
[1751315013014,0.8161,2522.4,2522.0,4.46510106]
[1751315013712,0.8161,2522.4,2522.1,3.96494876]
[1751315014675,0.8161,2522.4,2522.2,0.1976]
[1751315015401,4.78059112,2522.4,2522.2,0.1976]
[1751315015889,0.8161,2522.4,2522.2,0.1976]
[1751315016593,4.78062537,2522.4,2522.2,0.1976]
[1751315016778,0.8161,2522.4,2522.2,0.1976]
[1751315016979,4.7805996,2522.4,2522.2,0.1976]
[1751315017275,3.96494984,2522.1,2522.0,0.5]
[1751315017475,3.96488102,2522.2,2522.0,0.5]
[1751315017897,3.96494984,2522.1,2522.0,0.5]
[1751315018317,4.97724984,2522.1,2522.0,0.5]
[1751315018524,5.87146293,2522.1,2522.0,0.5]
[1751315018685,4.97724984,2522.1,2522.0,0.5]
[1751315019401,0.7989,2522.5,2522.0,0.5]
[1751315019588,3.96456147,2522.4,2522.0,0.6976]
[1751315021927,4.7633116,2522.5,2522.0,0.6976]
[1751315022216,6.665,2522.4,2522.0,0.6976]
[1751315022622,4.7633116,2522.5,2522.0,0.6976]
[1751315022792,6.665,2522.4,2522.0,0.6976]
[1751315023822,10.62953954,2522.4,2522.0,0.6976]
[1751315025223,6.665,2522.4,2522.0,0.6976]
[1751315025422,10.62960574,2522.4,2522.0,0.6976]
[1751315025627,3.96472112,2522.3,2522.0,0.6976]
[1751315026132,3.96486602,2522.2,2522.0,0.6976]
[1751315026297,4.73284984,2522.1,2522.0,0.5]
[1751315029526,0.7679,2522.1,2522.0,0.5]
[1751315030211,4.73284984,2522.1,2522.0,0.5]
[1751315030427,0.7679,2522.1,2522.0,0.5]
[1751315031134,0.7597,2522.4,2522.0,0.6976]
[1751315031292,0.1976,2522.5,2522.0,0.6976]
[1751315031493,0.1976,2522.5,2522.1,3.96489219]
[1751315031695,4.72342458,2522.9,2522.3,4.76305623]
[1751315031894,6.8606,2522.8,2522.4,0.1976]
[1751315032227,3.96433354,2522.5,2522.2,0.1976]
[1751315032406,3.96455926,2522.4,2522.0,0.5]
[1751315032740,4.16223702,2522.3,2522.0,0.5]
[1751315034319,4.16223702,2522.3,2522.0,1.67633533]
[1751315034520,4.16223702,2522.3,2522.0,0.5]
[1751315034736,4.72450162,2522.2,2522.0,0.5]
[1751315035055,3.96494984,2522.1,2522.0,0.5]
[1751315035642,4.92217049,2522.2,2522.0,0.5]
[1751315036421,3.96494984,2522.1,2522.0,0.5]
[1751315037619,4.92209487,2522.2,2522.0,0.5]
[1751315038141,4.92217239,2522.2,2522.0,0.5]
[1751315038310,6.62505368,2522.2,2522.0,0.5]
[1751315039141,3.96494984,2522.1,2522.0,0.5]
[1751315039640,5.33314984,2522.1,2522.0,0.5]
[1751315039939,15.33314984,2522.1,2522.0,0.5]
[1751315040842,21.99514984,2522.1,2522.0,0.5]
[1751315041036,24.97093393,2522.1,2522.0,0.5]
[1751315041647,13.79398409,2522.1,2522.0,0.5]
[1751315041844,23.73774984,2522.1,2522.0,0.5]
[1751315042232,14.98074984,2522.1,2522.0,0.5]
[1751315042434,23.73774984,2522.1,2522.0,0.5]
[1751315045137,24.28674984,2522.1,2522.0,0.5]
[1751315047547,13.73574984,2522.1,2522.0,0.5]
[1751315048549,15.50580586,2522.1,2522.0,0.5]
[1751315050450,16.05580586,2522.1,2522.0,0.5]
[1751315051866,7.30080586,2522.1,2522.0,0.5]
[1751315052155,16.05180586,2522.1,2522.0,0.5]
[1751315054253,33.10271701,2522.1,2522.0,0.5]
[1751315054562,5.3087506,2521.4,2521.3,1.1804849]
[1751315054731,3.96636522,2521.2,2521.1,1.1804849]
[1751315054936,10.62536522,2521.2,2521.1,1.1804849]
[1751315055682,4.16412254,2521.1,2521.0,1.1804849]
[1751315056240,4.71412254,2521.1,2521.0,1.1804849]
[1751315056455,3.96667988,2521.0,2520.9,1.2004849]
[1751315056665,10.62467988,2521.0,2520.9,1.2004849]
[1751315056871,3.9664397,2521.2,2520.9,1.2004849]
[1751315057175,4.16412254,2521.1,2521.0,1.1804849]
[1751315057383,12.91412254,2521.1,2521.0,1.1804849]
[1751315058135,0.1976,2521.1,2521.0,1.1804849]
[1751315058330,8.9466,2521.1,2521.0,1.1804849]
[1751315059160,0.7927,2521.6,2521.0,1.5351681]
[1751315059490,3.96636522,2521.2,2521.1,1.1804849]
[1751315059672,10.82196522,2521.2,2521.1,1.1804849]
[1751315059833,3.96652254,2521.1,2521.0,1.1804849]
[1751315060240,4.72052254,2521.1,2521.0,1.1804849]
[1751315060566,3.96667988,2521.0,2520.9,0.02]
[1751315060765,11.37112739,2521.0,2520.9,0.02]
[1751315060966,11.92112739,2521.0,2520.9,0.02]
[1751315061155,16.01712739,2521.0,2520.9,0.02]
[1751315061465,24.76612739,2521.0,2520.9,0.02]
[1751315065354,16.01712739,2521.0,2520.9,0.02]
[1751315065661,15.26312739,2521.0,2520.9,0.02]
[1751315065863,24.01212739,2521.0,2520.9,0.02]
[1751315069375,15.26312739,2521.0,2520.9,0.02]
[1751315069674,24.77982739,2521.0,2520.9,0.02]
[1751315070687,24.77982739,2521.0,2520.8,0.02]
[1751315070688,3.96683724,2520.9,2520.8,0.02]
[1751315070851,19.29786148,2520.9,2520.8,0.02]
[1751315072193,5.28548161,2520.3,2520.2,0.02]
[1751315072474,14.03548161,2520.3,2520.2,0.02]
[1751315073455,3.96778161,2520.3,2520.2,0.02]
[1751315073652,6.05978161,2520.3,2520.2,0.02]
[1751315073855,12.71678161,2520.3,2520.2,0.02]
[1751315074974,0.7677,2520.7,2520.2,0.02]
[1751315075174,6.05938278,2520.6,2520.2,0.02]
[1751315075373,3.96749439,2520.5,2520.2,0.02]
[1751315075576,3.96715293,2520.7,2520.2,0.02]
[1751315075776,8.749,2520.6,2520.3,0.8212]
[1751315075977,6.657,2520.5,2520.3,0.8212]
[1751315077087,2.092,2520.6,2520.3,0.8212]
[1751315077260,8.749,2520.6,2520.3,0.8212]
[1751315079507,8.749,2520.6,2520.3,4.78896811]
[1751315079660,8.743,2520.6,2520.3,4.78896811]
[1751315079861,3.96707413,2520.8,2520.3,4.78896811]
[1751315080263,8.742,2520.7,2520.3,4.78896811]
[1751315080488,3.96707413,2520.8,2520.3,4.78896811]
[1751315080674,8.742,2520.7,2520.4,0.1976]
[1751315081786,3.96716705,2520.7,2520.4,0.1976]
[1751315081985,6.655,2520.6,2520.4,0.1976]
[1751315082167,6.654,2520.6,2520.4,0.1976]
[1751315083707,0.2076,2520.9,2520.4,0.1976]
[1751315083910,6.654,2520.8,2520.6,0.7987]
[1751315084195,6.654,2520.8,2520.6,0.9963]
[1751315084770,6.664,2520.9,2520.6,4.96360099]
[1751315085107,0.01,2520.9,2520.6,4.96360099]
[1751315085794,0.01,2520.9,2520.6,6.02482118]
[1751315086183,3.97684756,2520.9,2520.6,2.05752019]
[1751315086814,0.01,2520.9,2520.6,2.05752019]
[1751315087014,0.01,2520.9,2520.6,6.02474317]
[1751315089218,0.01,2520.9,2520.7,3.96713917]
[1751315089545,0.01,2520.9,2520.7,8.17280687]
[1751315089821,0.01,2520.9,2520.8,4.9302946]
[1751315091603,0.01,2520.9,2520.8,6.1107795]
[1751315092419,0.01,2520.9,2520.8,4.9302946]
[1751315093123,0.01,2520.9,2520.8,6.1095795]
[1751315093324,0.01,2520.9,2520.8,8.09137445]
[1751315094633,0.01,2520.9,2520.8,8.47933666]
[1751315096544,0.01,2520.9,2520.8,2.94389495]
[1751315096746,0.01,2520.9,2520.8,0.9621]
[1751315097535,0.01,2520.9,2520.8,2.13636839]
[1751315097733,3.97683724,2520.9,2520.8,2.13636839]
[1751315098034,3.97683724,2520.9,2520.8,1.37186839]
[1751315098331,3.97683724,2520.9,2520.8,0.1976]
[1751315098639,0.01,2520.9,2520.8,0.1976]
[1751315099048,3.97683724,2520.9,2520.8,0.1976]
[1751315099901,3.97683724,2520.9,2520.8,0.2176]
[1751315100528,4.77119263,2520.9,2520.8,0.02]
[1751315100910,0.01,2520.9,2520.8,0.2176]
[1751315101537,3.97683724,2520.9,2520.8,0.2176]
[1751315102111,4.80563724,2520.9,2520.8,0.02]